[Event "17th Memorial Lezcano Montalvo 2025"]
[Site "Gran Canaria"]
[Date "2025.04.12"]
[Round "1.37"]
[White "Garcia Padron, Juan"]
[Black "Vargas Tinoco, Celso Alejandro"]
[Result "1-0"]
[Annotator "RC"]
[ECO "B30"]
[WhiteElo "2155"]
[BlackElo "1588"]
[PlyCount "69"]
[EventDate "2025.04.13"]
[EventType "swiss"]
[EventCountry "ESP"]
[SourceTitle "playchess.com"]
[Source "ChessBase"]
[SourceQuality "1"]
[TimeControl "5400+30"]

1. e4 {[%emt 0:00:30]} c5 {[%emt 0:00:30]} 2. Nf3 {[%emt 0:00:30]} d6 {[%emt 0:00:30]} 3. Nc3 {[%emt 0:00:30]} Nc6 {[%emt 0:00:30]} 4. Bb5 {[%emt 0:00:30]} e6 {[%emt 0:00:30]} 5. O-O {[%emt 0:00:30]} Be7 {[%emt 0:01:11]} 6. Re1 {[%emt 0:02:16]} Bd7 {[%emt 0:03:16]} 7. d3 {[%emt 0:04:12]} Nf6 {[%emt 1:27:33]} 8. Ne2 {[%emt 1:25:32]} O-O {[%emt 0:00:00]} 9. c3 {[%emt 0:00:30]} Qb6 {[%emt 0:00:00]} 10. Ba4 {[%emt 0:00:00]} c4 {[%emt 0:00:00]} 11. Bc2 {[%emt 0:00:00]} Ng4 {[%emt 0:00:00]} 12. d4 {[%emt 0:00:00]} Qc7 {[%emt 0:00:00]} 13. b3 {[%emt 0:00:00]} b5 {[%emt 0:00:00]} 14. Bf4 {[%emt 0:00:00]} e5 {[%emt 0:00:00]} 15. Bg3 {[%emt 0:00:00]} Rad8 {[%emt 0:00:00]} 16. Nd2 {[%emt 0:00:00]} exd4 {[%emt 0:00:00]} 17. cxd4 {[%emt 0:00:00]} Bf6 {[%emt 0:00:00]} 18. h3 {[%emt 0:00:00]} Nh6 {[%emt 0:00:00]} 19. Nf3 {[%emt 0:00:00]} Bc8 {[%emt 0:00:00]} 20. Rc1 {[%emt 0:00:00]} Nb4 {[%emt 0:00:00]} 21. Bb1 {[%emt 0:00:00]} Qa5 {[%emt 0:00:00]} 22. Qd2 {[%emt 0:00:00]} d5 {[%emt 0:00:00]} 23. e5 {[%emt 0:00:00]} Be7 {[%emt 0:00:00]} 24. Bh4 {[%emt 0:00:00]} f6 {[%emt 0:00:00]} 25. Ng3 {[%emt 0:00:00]} Nc6 {[%emt 0:00:00]} 26. Qc2 {[%emt 0:00:00]} g6 {[%emt 0:00:00]} 27. Rcd1 {[%emt 0:00:00]} Nf5 {[%emt 0:00:00]} 28. e6 {[%emt 0:00:00]} Nxh4 {[%emt 0:00:00]} 29. Nxh4 {[%emt 0:00:00]} f5 {[%emt 0:00:00]} 30. Ngxf5 {[%emt 0:00:00]} Rf6 {[%emt 0:00:00]} 31. Nh6+ {[%emt 0:00:00]} Kg7 {[%emt 0:00:00]} 32. Ng4 {[%emt 0:00:00]} Nxd4 {[%emt 0:00:00]} 33. Qc1 {[%emt 0:00:00]} Rxe6 {[%emt 0:00:00]} 34. Re3 {[%emt 0:12:30]} Re5 35. Rxe5 {[%emt 0:00:00]} 1-0

[Event "17th Memorial Lezcano Montalvo 2025"]
[Site "Gran Canaria"]
[Date "2025.04.12"]
[Round "1.38"]
[White "Jerez Baez, Alvaro"]
[Black "Bethencourt Hernandez, Alberto"]
[Result "0-1"]
[Annotator "RC"]
[ECO "D00"]
[WhiteElo "1583"]
[BlackElo "2122"]
[PlyCount "93"]
[EventDate "2025.04.13"]
[EventType "swiss"]
[EventCountry "ESP"]
[SourceTitle "playchess.com"]
[Source "ChessBase"]
[SourceQuality "1"]
[TimeControl "5400+30"]

1. d4 {[%emt 0:00:03]} Nf6 {[%emt 0:00:14]} 2. Nc3 {[%emt 0:00:19]} d5 {[%emt 0:00:51]} 3. Bf4 {[%emt 0:01:23]} Bf5 {[%emt 0:01:00]} 4. f3 {[%emt 0:01:50]} e6 {[%emt 0:01:43]} 5. g4 {[%emt 0:00:50]} Bg6 {[%emt 0:00:07]} 6. h4 {[%emt 0:00:46]} h5 {[%emt 0:00:31]} 7. g5 {[%emt 0:00:24]} Nfd7 {[%emt 0:04:14]} 8. e3 {[%emt 0:00:39]} Na6 {[%emt 0:06:33]} 9. a3 {[%emt 0:01:52]} c5 {[%emt 0:04:34]} 10. Bd3 {[%emt 0:03:18]} Bxd3 {[%emt 0:01:29]} 11. Qxd3 {[%emt 0:00:07]} Qb6 {[%emt 0:00:08]} 12. g6 {[%emt 0:05:23]} f5 {[%emt 0:03:29]} 13. Qb5 {[%emt 0:02:29]} cxd4 {[%emt 0:07:11]} 14. Qxb6 {[%emt 0:01:25]} Nxb6 {[%emt 0:00:08]} 15. exd4 {[%emt 0:00:16]} Nc4 {[%emt 0:03:58]} 16. O-O-O {[%emt 0:02:09]} Bd6 {[%emt 0:01:37]} 17. Nh3 {[%emt 0:02:09]} Rc8 {[%emt 0:03:45]} 18. Bxd6 {[%emt 0:00:54]} Nxd6 {[%emt 0:00:05]} 19. Rhe1 {[%emt 0:00:17]} Kd7 {[%emt 0:00:37]} 20. Nf4 {[%emt 0:01:18]} Nc7 {[%emt 0:00:12]} 21. Re2 {[%emt 0:00:43]} Rce8 {[%emt 0:05:37]} 22. Rde1 {[%emt 0:00:43]} Nc4 {[%emt 0:01:57]} 23. Na4 {[%emt 0:01:06]} b6 {[%emt 0:00:19]} 24. Kb1 {[%emt 0:03:47]} Kd6 {[%emt 0:03:16]} 25. Nd3 {[%emt 0:03:07]} Rh6 {[%emt 0:01:37]} 26. Nf4 {[%emt 0:00:56]} e5 {[%emt 0:01:20]} 27. dxe5+ {[%emt 0:00:35]} Rxe5 {[%emt 0:00:05]} 28. Nc3 {[%emt 0:01:53]} Nd2+ {[%emt 0:01:16]} 29. Rxd2 {[%emt 0:03:05]} Rxe1+ {[%emt 0:00:06]} 30. Ka2 {[%emt 0:00:10]} Rf1 {[%emt 0:02:02]} 31. Ncxd5 {[%emt 0:00:33]} Nxd5 {[%emt 0:01:06]} 32. Rxd5+ {[%emt 0:00:08]} Kc6 {[%emt 0:00:10]} 33. Rd3 {[%emt 0:01:23]} Rh1 {[%emt 0:02:06]} 34. Ne6 {[%emt 0:00:47]} Rxg6 {[%emt 0:02:18]} 35. Nd4+ {[%emt 0:01:40]} Kc7 {[%emt 0:00:16]} 36. Nxf5 {[%emt 0:00:12]} Rg2 {[%emt 0:00:09]} 37. Rd4 {[%emt 0:02:22]} g6 {[%emt 0:01:17]} 38. Ne3 {[%emt 0:01:56]} Rf2 {[%emt 0:01:57]} 39. Rf4 {[%emt 0:02:33]} Rh3 {[%emt 0:03:26]} 40. Nd5+ {[%emt 0:01:23]} Kd6 {[%emt 0:00:08]} 41. Nf6 {[%emt 0:02:31]} Rfxf3 {[%emt 0:00:28]} 42. Ne8+ {[%emt 0:07:03]} Ke5 {[%emt 0:02:01]} 43. Rb4 {[%emt 0:01:18]} Rf4 {[%emt 0:00:39]} 44. Rb5+ {[%emt 0:00:18]} Ke6 {[%emt 0:00:10]} 45. Nc7+ {[%emt 0:01:09]} Kd6 {[%emt 0:00:08]} 46. Na8 {[%emt 0:04:26]} Rhxh4 {[%emt 0:01:00]} 47. Nxb6 {[%emt 0:40:22]} 0-1

[Event "17th Memorial Lezcano Montalvo 2025"]
[Site "Gran Canaria"]
[Date "2025.04.12"]
[Round "1.39"]
[White "Krilovs, Nikolajs"]
[Black "Garcia Almeida, Valeria"]
[Result "1-0"]
[Annotator "RC"]
[ECO "A57"]
[WhiteElo "2112"]
[BlackElo "1582"]
[PlyCount "75"]
[EventDate "2025.04.13"]
[EventType "swiss"]
[EventCountry "ESP"]
[SourceTitle "playchess.com"]
[Source "ChessBase"]
[SourceQuality "1"]
[TimeControl "5400+30"]

1. d4 {[%emt 0:00:04]} Nf6 {[%emt 0:00:19]} 2. c4 {[%emt 0:00:08]} c5 {[%emt 0:00:56]} 3. d5 {[%emt 0:00:09]} b5 {[%emt 0:01:13]} 4. a4 {[%emt 0:00:12]} b4 {[%emt 0:04:40]} 5. Nd2 {[%emt 0:01:12]} g6 {[%emt 0:02:52]} 6. e4 {[%emt 0:00:32]} d6 {[%emt 0:01:07]} 7. b3 {[%emt 0:00:52]} Bg7 {[%emt 0:03:50]} 8. Bb2 {[%emt 0:00:57]} O-O {[%emt 0:06:25]} 9. Qc2 {[%emt 0:00:56]} Re8 {[%emt 0:10:44]} 10. Be2 {[%emt 0:03:20]} e6 {[%emt 0:13:11]} 11. O-O-O {[%emt 0:02:11]} exd5 {[%emt 0:02:00]} 12. cxd5 {[%emt 0:00:08]} Ba6 {[%emt 0:02:10]} 13. Bxa6 {[%emt 0:01:06]} Nxa6 {[%emt 0:00:06]} 14. f3 {[%emt 0:00:40]} Rc8 {[%emt 0:02:50]} 15. Nc4 {[%emt 0:01:54]} Nh5 {[%emt 0:12:02]} 16. Ne2 {[%emt 0:05:41]} Bxb2+ {[%emt 0:04:06]} 17. Kxb2 {[%emt 0:00:31]} Qf6+ {[%emt 0:00:20]} 18. Ka2 {[%emt 0:00:13]} Nb8 {[%emt 0:03:36]} 19. Qb2 {[%emt 0:02:55]} Qe7 {[%emt 0:05:17]} 20. g4 {[%emt 0:01:26]} Nf6 {[%emt 0:01:24]} 21. Nf4 {[%emt 0:01:54]} Nfd7 {[%emt 0:03:00]} 22. Nd3 {[%emt 0:03:42]} Nb6 {[%emt 0:01:18]} 23. Ne3 {[%emt 0:04:38]} a5 {[%emt 0:01:38]} 24. Rc1 {[%emt 0:00:37]} N8d7 {[%emt 0:01:10]} 25. Qe2 {[%emt 0:11:54]} Rc7 {[%emt 0:08:51]} 26. Nb2 {[%emt 0:01:10]} Ne5 {[%emt 0:00:12]} 27. h4 {[%emt 0:00:39]} Rec8 {[%emt 0:01:23]} 28. f4 {[%emt 0:06:24]} Ned7 {[%emt 0:00:18]} 29. Qd3 {[%emt 0:00:14]} Qe8 {[%emt 0:08:02]} 30. Nbc4 {[%emt 0:00:43]} Qe7 {[%emt 0:00:00]} 31. e5 {[%emt 0:00:24]} Nxc4 {[%emt 0:00:00]} 32. Nxc4 {[%emt 0:00:07]} Re8 {[%emt 0:00:35]} 33. Nxd6 {[%emt 0:00:10]} Rd8 {[%emt 0:00:04]} 34. Nc4 {[%emt 0:01:02]} Rcc8 {[%emt 0:00:34]} 35. h5 {[%emt 0:00:21]} Nf8 {[%emt 0:00:22]} 36. hxg6 {[%emt 0:00:23]} fxg6 {[%emt 0:00:09]} 37. f5 {[%emt 0:00:30]} Qf7 {[%emt 0:00:30]} 38. Nd6 {[%emt 0:00:26]} 1-0

[Event "17th Memorial Lezcano Montalvo 2025"]
[Site "Gran Canaria"]
[Date "2025.04.12"]
[Round "1.40"]
[White "Angulo Diaz, Dario"]
[Black "Ramirez Maillo, Cristian"]
[Result "0-1"]
[Annotator "RC"]
[ECO "E61"]
[WhiteElo "1568"]
[BlackElo "2106"]
[PlyCount "42"]
[EventDate "2025.04.13"]
[EventType "swiss"]
[EventCountry "ESP"]
[SourceTitle "playchess.com"]
[Source "ChessBase"]
[SourceQuality "1"]
[TimeControl "5400+30"]

1. d4 {[%emt 0:00:07]} Nf6 {[%emt 0:00:05]} 2. c4 {[%emt 0:00:17]} g6 {[%emt 0:00:05]} 3. Nc3 {[%emt 0:00:12]} Bg7 {[%emt 0:00:06]} 4. Nf3 {[%emt 0:00:26]} O-O {[%emt 0:00:10]} 5. Bf4 {[%emt 0:00:27]} d6 {[%emt 0:00:11]} 6. Qd2 {[%emt 0:00:55]} Nbd7 {[%emt 0:00:50]} 7. Bh6 {[%emt 0:01:03]} e5 {[%emt 0:00:25]} 8. Bxg7 {[%emt 0:00:43]} Kxg7 {[%emt 0:00:06]} 9. e4 {[%emt 0:02:39]} Qe7 {[%emt 0:01:53]} 10. Bd3 {[%emt 0:01:37]} Re8 {[%emt 0:01:49]} 11. O-O {[%emt 0:02:39]} c6 {[%emt 0:00:23]} 12. a3 {[%emt 0:01:21]} a5 {[%emt 0:00:39]} 13. Rac1 {[%emt 0:00:57]} exd4 {[%emt 0:01:56]} 14. Nxd4 {[%emt 0:03:23]} Nc5 {[%emt 0:00:15]} 15. Rfe1 {[%emt 0:02:53]} a4 {[%emt 0:01:31]} 16. Bc2 {[%emt 0:03:18]} Nfd7 {[%emt 0:00:36]} 17. Re3 {[%emt 0:02:23]} Ne5 {[%emt 0:03:59]} 18. Qe2 {[%emt 0:04:43]} Qf6 {[%emt 0:02:44]} 19. Rf1 {[%emt 0:01:24]} Ng4 {[%emt 0:00:31]} 20. e5 {[%emt 0:05:55]} Qf4 {[%emt 0:01:45]} 21. Re4 {[%emt 0:01:11]} Qxh2# {[%emt 0:00:41]} 0-1

[Event "17th Memorial Lezcano Montalvo 2025"]
[Site "Gran Canaria"]
[Date "2025.04.12"]
[Round "1.41"]
[White "Halldorsson, Halldor"]
[Black "Rodriguez Trujillo, Cristian"]
[Result "1-0"]
[Annotator "RC"]
[ECO "C86"]
[WhiteElo "2103"]
[BlackElo "1562"]
[PlyCount "101"]
[EventDate "2025.04.13"]
[EventType "swiss"]
[EventCountry "ESP"]
[SourceTitle "playchess.com"]
[Source "ChessBase"]
[SourceQuality "1"]
[TimeControl "5400+30"]

1. e4 {[%emt 0:00:13]} e5 {[%emt 0:00:17]} 2. Nf3 {[%emt 0:00:20]} Nc6 {[%emt 0:00:43]} 3. Bb5 {[%emt 0:00:27]} a6 {[%emt 0:00:00]} 4. Ba4 {[%emt 0:00:22]} Nf6 {[%emt 0:00:11]} 5. O-O {[%emt 0:00:34]} Be7 {[%emt 0:01:21]} 6. Qe2 {[%emt 0:00:54]} d6 {[%emt 0:01:04]} 7. c3 {[%emt 0:00:57]} O-O {[%emt 0:01:24]} 8. d4 {[%emt 0:00:59]} exd4 {[%emt 0:02:42]} 9. cxd4 {[%emt 0:00:31]} Bg4 {[%emt 0:00:50]} 10. Rd1 {[%emt 0:00:37]} d5 {[%emt 0:07:22]} 11. e5 {[%emt 0:03:03]} Ne4 {[%emt 0:02:36]} 12. Nc3 {[%emt 0:02:16]} Ng5 {[%emt 0:03:12]} 13. Bb3 {[%emt 0:01:31]} Nxf3+ {[%emt 0:02:03]} 14. gxf3 {[%emt 0:00:11]} Be6 {[%emt 0:00:14]} 15. f4 {[%emt 0:00:36]} Qd7 {[%emt 0:01:05]} 16. Kh1 {[%emt 0:05:37]} Bg4 {[%emt 0:10:42]} 17. f3 {[%emt 0:02:17]} Be6 {[%emt 0:02:44]} 18. Be3 {[%emt 0:01:44]} Na5 {[%emt 0:01:56]} 19. f5 {[%emt 0:01:49]} Bxf5 {[%emt 0:05:41]} 20. Bxd5 {[%emt 0:00:18]} c6 {[%emt 0:01:27]} 21. Be4 {[%emt 0:00:41]} Bxe4 {[%emt 0:00:13]} 22. fxe4 {[%emt 0:00:13]} f6 {[%emt 0:04:55]} 23. exf6 {[%emt 0:00:21]} Bxf6 {[%emt 0:01:35]} 24. b4 {[%emt 0:00:48]} b5 {[%emt 0:02:19]} 25. bxa5 {[%emt 0:00:51]} Qh3 {[%emt 0:00:09]} 26. e5 {[%emt 0:02:38]} Bh4 {[%emt 0:00:43]} 27. Rf1 {[%emt 0:00:32]} Rfe8 {[%emt 0:05:06]} 28. Ne4 {[%emt 0:01:17]} Qe6 {[%emt 0:01:46]} 29. Bg5 {[%emt 0:00:57]} Bxg5 {[%emt 0:00:37]} 30. Nxg5 {[%emt 0:00:07]} Qd5+ {[%emt 0:00:17]} 31. Qe4 {[%emt 0:00:08]} Qxe4+ {[%emt 0:01:53]} 32. Nxe4 {[%emt 0:00:09]} Rad8 {[%emt 0:00:31]} 33. Nd6 {[%emt 0:00:33]} Re6 {[%emt 0:00:51]} 34. Rae1 {[%emt 0:00:48]} Rd7 {[%emt 0:01:30]} 35. Kg2 {[%emt 1:12:41]} Rg6+ {[%emt 0:01:05]} 36. Kf3 {[%emt 0:00:00]} Kf8 {[%emt 0:00:38]} 37. Ke4+ {[%emt 0:00:00]} Ke7 {[%emt 0:00:31]} 38. Rf7+ {[%emt 0:00:00]} Ke6 {[%emt 0:37:17]} 39. Rxd7 {[%emt 0:00:00]} Kxd7 {[%emt 0:00:00]} 40. d5 {[%emt 0:00:00]} cxd5+ {[%emt 0:00:00]} 41. Kxd5 {[%emt 0:00:00]} Rg2 {[%emt 0:00:00]} 42. e6+ {[%emt 0:00:00]} Ke7 {[%emt 0:00:00]} 43. Nf5+ {[%emt 0:00:00]} Ke8 {[%emt 0:00:00]} 44. Rc1 {[%emt 0:00:00]} Rd2+ {[%emt 0:00:00]} 45. Ke4 {[%emt 0:00:00]} g6 {[%emt 0:00:00]} 46. Rc8+ {[%emt 0:00:00]} Rd8 {[%emt 0:00:00]} 47. Nd6+ {[%emt 0:00:00]} Ke7 {[%emt 0:04:30]} 48. Ke5 {[%emt 0:00:00]} Rxc8 {[%emt 0:00:00]} 49. Nxc8+ {[%emt 0:00:00]} Kd8 {[%emt 0:00:00]} 50. e7+ {[%emt 0:00:00]} Kd7 {[%emt 0:00:00]} 51. Ke4 {[%emt 0:08:00]} 1-0

[Event "17th Memorial Lezcano Montalvo 2025"]
[Site "Gran Canaria"]
[Date "2025.04.12"]
[Round "1.42"]
[White "Vallejo Aleman, Ricardo Manuel"]
[Black "Blanco Garcia Bajo, David"]
[Result "0-1"]
[Annotator "RC"]
[ECO "C02"]
[WhiteElo "1554"]
[BlackElo "2098"]
[PlyCount "42"]
[EventDate "2025.04.13"]
[EventType "swiss"]
[EventCountry "ESP"]
[SourceTitle "playchess.com"]
[Source "ChessBase"]
[SourceQuality "1"]
[TimeControl "5400+30"]

1. e4 {[%emt 0:00:24]} e6 {[%emt 0:00:06]} 2. d4 {[%emt 0:00:20]} d5 {[%emt 0:00:08]} 3. e5 {[%emt 0:00:01]} c5 {[%emt 0:00:06]} 4. c3 {[%emt 0:00:04]} Nc6 {[%emt 0:00:05]} 5. Nf3 {[%emt 0:00:34]} Qb6 {[%emt 0:00:06]} 6. Qa4 {[%emt 0:00:55]} Bd7 {[%emt 0:00:35]} 7. Qd1 {[%emt 0:02:27]} Nge7 {[%emt 0:00:37]} 8. Na3 {[%emt 0:01:14]} cxd4 {[%emt 0:02:00]} 9. c4 {[%emt 0:01:28]} Ng6 {[%emt 0:03:19]} 10. b3 {[%emt 0:02:32]} Bxa3 {[%emt 0:00:31]} 11. Bxa3 {[%emt 0:00:15]} Qa5+ {[%emt 0:00:06]} 12. Qd2 {[%emt 0:00:32]} Qxa3 {[%emt 0:00:04]} 13. Qg5 {[%emt 0:00:27]} h6 {[%emt 0:01:13]} 14. Qg4 {[%emt 0:00:51]} Qb2 {[%emt 0:01:50]} 15. Rd1 {[%emt 0:00:32]} Qc3+ {[%emt 0:00:16]} 16. Rd2 {[%emt 0:00:48]} d3 {[%emt 0:02:45]} 17. Bxd3 {[%emt 0:00:18]} Ncxe5 {[%emt 0:00:08]} 18. Nxe5 {[%emt 0:00:46]} Nxe5 {[%emt 0:00:03]} 19. Qxg7 {[%emt 0:01:30]} Nxd3+ {[%emt 0:00:08]} 20. Ke2 {[%emt 0:00:06]} Nf4+ {[%emt 0:00:00]} 21. Ke1 {[%emt 0:01:02]} Qxg7 {[%emt 0:00:00]} 0-1

[Event "17th Memorial Lezcano Montalvo 2025"]
[Site "Gran Canaria"]
[Date "2025.04.12"]
[Round "1.43"]
[White "Hu, Jiani"]
[Black "Monteiro Rodrigues, Carlos"]
[Result "1-0"]
[Annotator "RC"]
[ECO "C90"]
[WhiteElo "2091"]
[BlackElo "1549"]
[PlyCount "43"]
[EventDate "2025.04.13"]
[EventType "swiss"]
[EventCountry "ESP"]
[SourceTitle "playchess.com"]
[Source "ChessBase"]
[SourceQuality "1"]
[TimeControl "5400+30"]

1. e4 {[%emt 0:00:14]} e5 {[%emt 0:00:08]} 2. Nf3 {[%emt 0:00:13]} Nc6 {[%emt 0:00:13]} 3. Bb5 {[%emt 0:00:18]} a6 {[%emt 0:00:34]} 4. Ba4 {[%emt 0:00:08]} b5 {[%emt 0:01:08]} 5. Bb3 {[%emt 0:00:08]} Nf6 {[%emt 0:01:19]} 6. O-O {[%emt 0:01:08]} Be7 {[%emt 0:01:02]} 7. Re1 {[%emt 0:02:13]} d6 {[%emt 0:00:23]} 8. c3 {[%emt 0:00:25]} Bg4 {[%emt 0:00:29]} 9. d3 {[%emt 0:01:43]} h6 {[%emt 0:02:31]} 10. Nbd2 {[%emt 0:01:57]} Nh5 {[%emt 0:02:12]} 11. h3 {[%emt 0:02:28]} Bxf3 {[%emt 0:03:00]} 12. Qxf3 {[%emt 0:00:23]} Nf6 {[%emt 0:00:58]} 13. Nf1 {[%emt 0:00:58]} Na5 {[%emt 0:02:30]} 14. Bc2 {[%emt 0:01:26]} Nh7 {[%emt 0:01:12]} 15. b4 {[%emt 0:07:35]} Nc6 {[%emt 0:02:19]} 16. Bb3 {[%emt 0:00:56]} Bf6 {[%emt 0:00:56]} 17. Ng3 {[%emt 0:01:42]} Ne7 {[%emt 0:00:22]} 18. Nh5 {[%emt 0:01:22]} O-O {[%emt 0:03:26]} 19. Nxf6+ {[%emt 0:08:59]} Nxf6 {[%emt 0:00:29]} 20. Bxh6 {[%emt 0:00:42]} Ng6 {[%emt 0:02:52]} 21. Bg5 {[%emt 0:00:33]} c6 {[%emt 0:01:09]} 22. Qf5 {[%emt 0:07:52]} 1-0

[Event "17th Memorial Lezcano Montalvo 2025"]
[Site "Gran Canaria"]
[Date "2025.04.12"]
[Round "1.44"]
[White "Gavilan Ledezma, Kevin"]
[Black "Cruz Ramirez, Nauzet"]
[Result "0-1"]
[Annotator "RC"]
[ECO "B13"]
[WhiteElo "1548"]
[BlackElo "2076"]
[PlyCount "74"]
[EventDate "2025.04.13"]
[EventType "swiss"]
[EventCountry "ESP"]
[SourceTitle "playchess.com"]
[Source "ChessBase"]
[SourceQuality "1"]
[TimeControl "5400+30"]

1. e4 {[%emt 0:00:04]} c6 {[%emt 0:00:06]} 2. d4 {[%emt 0:00:30]} d5 {[%emt 0:00:04]} 3. exd5 {[%emt 0:00:39]} cxd5 {[%emt 0:00:07]} 4. Nf3 {[%emt 0:00:17]} Nf6 {[%emt 0:00:59]} 5. h3 {[%emt 0:00:53]} Nc6 {[%emt 0:00:19]} 6. Be2 {[%emt 0:00:22]} e6 {[%emt 0:00:10]} 7. Bg5 {[%emt 0:01:33]} Bd6 {[%emt 0:00:29]} 8. O-O {[%emt 0:01:20]} h6 {[%emt 0:00:05]} 9. Bh4 {[%emt 0:01:43]} g5 {[%emt 0:03:41]} 10. Bg3 {[%emt 0:00:32]} Bxg3 {[%emt 0:00:10]} 11. fxg3 {[%emt 0:00:26]} Ne4 {[%emt 0:00:16]} 12. Ne5 {[%emt 0:05:51]} Nxe5 {[%emt 0:00:18]} 13. dxe5 {[%emt 0:00:21]} Qb6+ {[%emt 0:00:12]} 14. Kh2 {[%emt 0:01:06]} Qxb2 {[%emt 0:13:11]} 15. Nd2 {[%emt 0:01:37]} Qxe5 {[%emt 0:15:06]} 16. Nxe4 {[%emt 0:01:45]} dxe4 {[%emt 0:01:05]} 17. Rb1 {[%emt 0:03:14]} O-O {[%emt 0:01:40]} 18. Bh5 {[%emt 0:00:33]} f5 {[%emt 0:01:30]} 19. Qe2 {[%emt 0:01:22]} Qc7 {[%emt 0:08:18]} 20. Rb4 {[%emt 0:01:39]} Bd7 {[%emt 0:00:32]} 21. Rc4 {[%emt 0:00:36]} Bc6 {[%emt 0:00:19]} 22. Qe3 {[%emt 0:00:15]} Qg7 {[%emt 0:02:19]} 23. Qc5 {[%emt 0:03:41]} a6 {[%emt 0:01:09]} 24. Rd4 {[%emt 0:01:11]} Rad8 {[%emt 0:06:09]} 25. Rd6 {[%emt 0:01:23]} Bd5 {[%emt 0:04:06]} 26. Rd1 {[%emt 0:01:33]} Rc8 {[%emt 0:00:35]} 27. Qf2 {[%emt 0:01:55]} Rc6 {[%emt 0:20:15]} 28. Rxc6 {[%emt 0:01:33]} Bxc6 {[%emt 0:00:30]} 29. Rd6 {[%emt 0:00:21]} Qe5 {[%emt 0:00:15]} 30. Qd4 {[%emt 0:00:11]} Qxd4 {[%emt 0:00:07]} 31. Rxd4 {[%emt 0:00:08]} Kg7 {[%emt 0:00:04]} 32. Be2 {[%emt 0:00:27]} Kf6 {[%emt 0:00:37]} 33. Bc4 {[%emt 0:00:16]} Ke5 {[%emt 0:00:08]} 34. c3 {[%emt 0:00:27]} Bd5 {[%emt 0:00:06]} 35. Bb3 {[%emt 0:00:24]} Rc8 {[%emt 0:00:09]} 36. Bxd5 {[%emt 0:00:38]} exd5 {[%emt 0:00:06]} 37. Rb4 {[%emt 0:00:18]} Rxc3 {[%emt 0:00:32]} 0-1

[Event "17th Memorial Lezcano Montalvo 2025"]
[Site "Gran Canaria"]
[Date "2025.04.12"]
[Round "1.45"]
[White "Sukhodolskyi, Oleksii"]
[Black "Martin Gonzalez, Lucas"]
[Result "1-0"]
[Annotator "RC"]
[ECO "B07"]
[WhiteElo "2070"]
[BlackElo "1547"]
[PlyCount "109"]
[EventDate "2025.04.13"]
[EventType "swiss"]
[EventCountry "ESP"]
[SourceTitle "playchess.com"]
[Source "ChessBase"]
[SourceQuality "1"]
[TimeControl "5400+30"]

1. e4 {[%emt 0:00:03]} d6 {[%emt 0:00:43]} 2. d4 {[%emt 0:00:14]} Nf6 {[%emt 0:00:34]} 3. Nc3 {[%emt 0:00:12]} e5 {[%emt 0:01:25]} 4. dxe5 {[%emt 0:00:45]} dxe5 {[%emt 0:00:45]} 5. Qxd8+ {[%emt 0:00:14]} Kxd8 {[%emt 0:00:33]} 6. Bg5 {[%emt 0:03:07]} Nbd7 {[%emt 0:08:39]} 7. Bc4 {[%emt 0:03:53]} Ke8 {[%emt 0:07:38]} 8. Nf3 {[%emt 0:02:51]} Bd6 {[%emt 0:08:57]} 9. O-O {[%emt 0:03:51]} h6 {[%emt 0:02:43]} 10. Be3 {[%emt 0:02:38]} c6 {[%emt 0:04:31]} 11. a3 {[%emt 0:01:48]} Ke7 {[%emt 0:05:48]} 12. Rad1 {[%emt 0:06:44]} Nf8 {[%emt 0:11:05]} 13. Bxf7 {[%emt 0:06:26]} Ne6 {[%emt 0:04:03]} 14. Bxe6 {[%emt 0:00:51]} Bxe6 {[%emt 0:00:31]} 15. Rd2 {[%emt 0:10:18]} Ng4 {[%emt 0:05:34]} 16. Nh4 {[%emt 0:03:34]} Nxe3 {[%emt 0:04:22]} 17. Ng6+ {[%emt 0:03:57]} Kd7 {[%emt 0:31:09]} 18. fxe3 {[%emt 0:00:53]} Rhd8 {[%emt 0:00:00]} 19. Nxe5+ {[%emt 0:03:42]} Kc7 {[%emt 0:00:00]} 20. Nf3 {[%emt 0:00:35]} Bc5 {[%emt 0:00:00]} 21. Nd4 {[%emt 0:01:23]} Bc4 {[%emt 0:00:00]} 22. Rf5 {[%emt 0:01:27]} Bxd4 {[%emt 0:00:00]} 23. exd4 {[%emt 0:05:40]} Rd7 {[%emt 0:00:00]} 24. b3 {[%emt 0:02:00]} Bg8 {[%emt 0:00:00]} 25. Rf3 {[%emt 0:02:09]} Rad8 {[%emt 0:00:00]} 26. Rfd3 {[%emt 0:00:14]} Bh7 {[%emt 0:00:00]} 27. d5 {[%emt 0:01:21]} Bg6 {[%emt 0:00:00]} 28. dxc6 {[%emt 0:00:29]} bxc6 {[%emt 0:00:00]} 29. Rxd7+ {[%emt 0:00:09]} Rxd7 {[%emt 0:00:00]} 30. Rxd7+ {[%emt 0:00:05]} Kxd7 {[%emt 0:00:00]} 31. Kf2 {[%emt 0:00:07]} Kd6 {[%emt 0:00:00]} 32. Ke3 {[%emt 0:00:29]} Ke5 {[%emt 0:00:00]} 33. g3 {[%emt 0:00:24]} h5 {[%emt 0:00:27]} 34. h4 {[%emt 0:02:12]} Bf7 {[%emt 0:01:07]} 35. b4 {[%emt 0:00:50]} Bc4 {[%emt 0:01:04]} 36. Na4 {[%emt 0:00:32]} Bf7 {[%emt 0:03:43]} 37. Nc5 {[%emt 0:00:21]} Bg6 {[%emt 0:00:27]} 38. c4 {[%emt 0:00:24]} Bf7 {[%emt 0:01:59]} 39. Nd3+ {[%emt 0:00:15]} Kd6 {[%emt 0:00:12]} 40. Kd4 {[%emt 0:00:08]} a6 {[%emt 0:00:21]} 41. Nc5 {[%emt 0:00:22]} a5 {[%emt 0:00:38]} 42. Nb7+ {[%emt 0:00:22]} Kc7 {[%emt 0:00:48]} 43. Nxa5 {[%emt 0:00:10]} c5+ {[%emt 0:00:00]} 44. Kxc5 {[%emt 0:00:10]} g5 {[%emt 0:00:00]} 45. hxg5 {[%emt 0:00:08]} h4 {[%emt 0:00:07]} 46. gxh4 {[%emt 0:00:03]} Bg6 {[%emt 0:00:21]} 47. e5 {[%emt 0:00:15]} Be8 {[%emt 0:01:04]} 48. b5 {[%emt 0:00:09]} Bxb5 {[%emt 0:00:45]} 49. cxb5 {[%emt 0:00:08]} Kd7 {[%emt 0:00:34]} 50. g6 {[%emt 0:00:08]} Kc7 {[%emt 0:00:09]} 51. g7 {[%emt 0:00:09]} Kd7 {[%emt 0:00:21]} 52. g8=Q {[%emt 0:00:09]} Kc7 {[%emt 0:00:12]} 53. Nc6 {[%emt 0:00:15]} Kd7 {[%emt 0:00:28]} 54. e6+ {[%emt 0:00:08]} Kc7 {[%emt 0:00:18]} 55. Qb8# {[%emt 0:00:06]} 1-0